fUST/lending_fUST_20250210
["ID","MTS","AMOUNT","RATE_DAILY","PERIOD"]
[352582943,1739178652934,-1331.53,0.00012465,2]
[352582944,1739178652943,-604.57,0.00012465,2]
[352582945,1739178652953,-500.0,0.00012465,2]
[352582946,1739178652963,-568.08,0.00012465,2]
[352582947,1739178652972,-500.0,0.00012465,2]
[352582948,1739178652982,-756.28,0.00012465,2]
[352582949,1739178652992,-7225.64,0.00012465,2]
[352582950,1739178653003,-248.11813587,0.00012465,2]
[352582951,1739178653016,-863.77,0.00012465,2]
[352582952,1739178653027,-904.08,0.00012465,2]
[352582953,1739178653037,-1490.65,0.00012465,2]
[352582954,1739178653048,-1689.31,0.00012465,2]
[352582955,1739178653058,-520.59,0.00012465,2]
[352582956,1739178653067,-754.98,0.00012465,2]
[352582957,1739178653076,-500.0,0.00012465,2]
[352582958,1739178653088,-2892.98,0.00012465,2]
[352582959,1739178653097,-1568.35,0.00012465,2]
[352582960,1739178653106,-5541.94,0.00012465,2]
[352582961,1739178653116,-1220.88,0.00012465,2]
[352582962,1739178653125,-151.0,0.000125,2]
[352582963,1739178653135,-175.33706479,0.00012502,2]
[352582964,1739178653145,-161.86712312,0.00012502,2]
[352582965,1739178653154,-500.56880759,0.00012522,2]
[352582966,1739178653164,-1000.0,0.00012522,2]
[352582967,1739178653173,-162.433208,0.00012523,2]
[352582968,1739178653183,-162.433208,0.00012523,2]
[352582969,1739178653192,-151.0,0.00012602,2]
[352582970,1739178653201,-151.0,0.00012602,2]
[352582971,1739178653210,-500.0,0.00012602,2]
[352582972,1739178653220,-500.0,0.00012602,2]
[352582973,1739178653231,-558.17,0.00012602,2]
[352582974,1739178653240,-500.0,0.00012602,2]
[352582975,1739178653249,-500.0,0.00012602,2]
[352582976,1739178653259,-151.0,0.00012602,2]
[352582977,1739178653268,-500.0,0.00012602,2]
[352582978,1739178653278,-151.0,0.00012602,2]
[352582979,1739178653287,-500.0,0.00012602,2]
[352582980,1739178653296,-742.11,0.00012602,2]
[352582981,1739178653306,-152.516223,0.00012602,2]
[352582982,1739178653315,-152.516223,0.00012602,2]
[352582983,1739178653324,-151.0,0.00012602,2]
[352582984,1739178653333,-500.0,0.00012602,2]
[352582985,1739178653342,-858.14,0.00012602,2]
[352582986,1739178653351,-537.94,0.00012602,2]
[352582987,1739178653361,-617.4,0.00012602,2]
[352582988,1739178653370,-500.0,0.00012602,2]
[352582989,1739178653379,-1006.77,0.00012602,2]
[352582990,1739178653388,-19548.37,0.00012602,2]
[352582991,1739178653397,-560.17,0.00012602,2]
[352582992,1739178653406,-1383.92,0.00012602,2]
[352582993,1739178653416,-923.08,0.00012602,2]
[352582994,1739178653426,-500.0,0.00012602,2]
[352582995,1739178653436,-2923.13,0.00012602,2]
[352582996,1739178653446,-500.0,0.00012602,2]
[352582997,1739178653455,-1416.35,0.00012602,2]
[352582998,1739178653465,-716.41,0.00012602,2]
[352582999,1739178653475,-634.51,0.00012602,2]
[352583000,1739178653484,-506.21,0.00012602,2]
[352583001,1739178653493,-1331.53,0.00012602,2]
[352583002,1739178653503,-604.57,0.00012602,2]
[352583003,1739178653512,-500.0,0.00012602,2]
[352583004,1739178653521,-568.08,0.00012602,2]
[352583005,1739178653531,-500.0,0.00012602,2]
[352583006,1739178653541,-756.28,0.00012602,2]
[352583007,1739178653550,-7225.64,0.00012602,2]
[352583008,1739178653560,-863.77,0.00012602,2]
[352583009,1739178653569,-904.08,0.00012602,2]
[352583010,1739178653579,-1490.65,0.00012602,2]
[352583011,1739178653589,-151.0,0.00012602,2]
[352583012,1739178653598,-1689.31,0.00012602,2]
[352583013,1739178653608,-151.0,0.00012602,2]
[352583014,1739178653618,-520.59,0.00012602,2]
[352583015,1739178653628,-754.98,0.00012602,2]
[352583016,1739178653638,-500.0,0.00012602,2]
[352583017,1739178653647,-2892.98,0.00012602,2]
[352583018,1739178653656,-1568.35,0.00012602,2]
[352583019,1739178653665,-5541.94,0.00012602,2]
[352583020,1739178653674,-1220.88,0.00012602,2]
[352583021,1739178653684,-500.0,0.00012739,2]
[352583022,1739178653693,-500.0,0.00012739,2]
[352583023,1739178653702,-558.17,0.00012739,2]
[352583024,1739178653713,-500.0,0.00012739,2]
[352583025,1739178653722,-151.0,0.00012739,2]
[352583026,1739178653731,-500.0,0.00012739,2]
[352583027,1739178653741,-500.0,0.00012739,2]
[352583028,1739178653750,-151.602746,0.00012739,2]
[352583029,1739178653759,-500.0,0.00012739,2]
[352583030,1739178653769,-742.11,0.00012739,2]
[352583031,1739178653778,-500.0,0.00012739,2]
[352583032,1739178653787,-858.14,0.00012739,2]
[352583033,1739178653798,-537.94,0.00012739,2]
[352583034,1739178653807,-617.4,0.00012739,2]
[352583035,1739178653816,-500.0,0.00012739,2]
[352583036,1739178653905,-1006.77,0.00012739,2]
[352583037,1739178653915,-19548.37,0.00012739,2]
[352583038,1739178653923,-560.17,0.00012739,2]
[352583039,1739178653934,-1383.92,0.00012739,2]
[352583040,1739178653943,-923.08,0.00012739,2]
[352583041,1739178653952,-500.0,0.00012739,2]
[352583042,1739178653962,-2923.13,0.00012739,2]
[352583043,1739178653972,-500.0,0.00012739,2]
[352583044,1739178653981,-1416.35,0.00012739,2]
[352583045,1739178653991,-716.41,0.00012739,2]
[352583046,1739178654000,-634.51,0.00012739,2]
[352583047,1739178654012,-506.21,0.00012739,2]
[352583048,1739178654022,-1331.53,0.00012739,2]
[352583049,1739178654031,-604.57,0.00012739,2]
[352583050,1739178654041,-500.0,0.00012739,2]
[352583051,1739178654050,-568.08,0.00012739,2]
[352583052,1739178654062,-500.0,0.00012739,2]
[352583053,1739178654071,-756.28,0.00012739,2]
[352583054,1739178654081,-7225.64,0.00012739,2]
[352583055,1739178654092,-863.77,0.00012739,2]
[352583056,1739178654101,-904.08,0.00012739,2]
[352583057,1739178654111,-1490.65,0.00012739,2]
[352583058,1739178654120,-1689.31,0.00012739,2]
[352583059,1739178654130,-520.59,0.00012739,2]
[352583060,1739178654139,-151.770735,0.00012739,2]
[352583061,1739178654149,-754.98,0.00012739,2]
[352583062,1739178654159,-500.0,0.00012739,2]
[352583063,1739178654168,-2892.98,0.00012739,2]
[352583064,1739178654178,-1568.35,0.00012739,2]
[352583065,1739178654188,-5541.94,0.00012739,2]
[352583066,1739178654198,-1220.88,0.00012739,2]
[352583067,1739178654207,-151.0,0.000128,2]
[352583068,1739178654217,-500.0,0.00012862,2]
[352583069,1739178654227,-500.0,0.00012876,2]
[352583070,1739178654236,-500.0,0.00012876,2]
[352583071,1739178654246,-558.17,0.00012876,2]
[352583072,1739178654255,-500.0,0.00012876,2]
[352583073,1739178654264,-500.0,0.00012876,2]
[352583074,1739178654274,-387.55,0.00012876,2]
[352583075,1739178654283,-500.0,0.00012876,2]
[352583076,1739178654292,-742.11,0.00012876,2]
[352583077,1739178654302,-500.0,0.00012876,2]
[352583078,1739178654311,-858.14,0.00012876,2]
[352583079,1739178654320,-537.94,0.00012876,2]
[352583080,1739178654330,-617.4,0.00012876,2]
[352583081,1739178654339,-500.0,0.00012876,2]
[352583082,1739178654348,-1006.77,0.00012876,2]
[352583083,1739178654357,-19548.37,0.00012876,2]
[352583084,1739178654366,-560.17,0.00012876,2]
[352583085,1739178654375,-1383.92,0.00012876,2]
[352583086,1739178654384,-923.08,0.00012876,2]
[352583087,1739178654394,-500.0,0.00012876,2]
[352583088,1739178654403,-2923.13,0.00012876,2]
[352583089,1739178654413,-500.0,0.00012876,2]
[352583090,1739178654422,-1416.35,0.00012876,2]
[352583091,1739178654431,-716.41,0.00012876,2]
[352583092,1739178654440,-634.51,0.00012876,2]
[352583093,1739178654449,-506.21,0.00012876,2]
[352583094,1739178654458,-1331.53,0.00012876,2]
[352583095,1739178654467,-604.57,0.00012876,2]
[352583096,1739178654476,-500.0,0.00012876,2]
[352583097,1739178654485,-568.08,0.00012876,2]
[352583098,1739178654495,-220.901933,0.00012876,2]
[352583099,1739178654505,-645.62,0.00012876,2]
[352583100,1739178654514,-220.901933,0.00012876,2]
[352583101,1739178654524,-756.28,0.00012876,2]
[352583102,1739178654534,-7225.64,0.00012876,2]
[352583103,1739178654544,-863.77,0.00012876,2]
[352583104,1739178654554,-904.08,0.00012876,2]
[352583105,1739178654564,-1490.65,0.00012876,2]
[352583106,1739178654573,-1689.31,0.00012876,2]
[352583107,1739178654583,-520.59,0.00012876,2]
[352583108,1739178654593,-754.98,0.00012876,2]
[352583109,1739178654604,-649.12,0.00012876,2]
[352583110,1739178654614,-2892.98,0.00012876,2]
[352583111,1739178654624,-1568.35,0.00012876,2]
[352583112,1739178654634,-5541.94,0.00012876,2]
[352583113,1739178654644,-223.377237,0.00012876,2]
[352583114,1739178654654,-1220.88,0.00012876,2]
[352583115,1739178654664,-500.0,0.00013013,2]
[352583116,1739178654676,-500.0,0.00013013,2]
[352583117,1739178654685,-558.17,0.00013013,2]
[352583118,1739178654695,-500.0,0.00013013,2]
[352583119,1739178654704,-151.0,0.00013013,2]
[352583120,1739178654714,-151.0,0.00013013,2]
[352583121,1739178654724,-327.941887,0.00013013,2]
[352583122,1739178654733,-327.941887,0.00013013,2]
[352583123,1739178654742,-500.0,0.00013013,2]
[352583124,1739178654752,-500.0,0.00013013,2]
[352583125,1739178654761,-742.11,0.00013013,2]
[352583126,1739178654772,-151.0,0.00013013,2]
[352583127,1739178654781,-151.0,0.00013013,2]
[352583128,1739178654790,-301.6,0.00013013,2]
[352583129,1739178654799,-858.14,0.00013013,2]
[352583130,1739178654810,-537.94,0.00013013,2]
[352583131,1739178654819,-617.4,0.00013013,2]
[352583132,1739178654828,-500.0,0.00013013,2]
[352583133,1739178654839,-1006.77,0.00013013,2]
[352583134,1739178654848,-151.0,0.00013013,2]
[352583135,1739178654859,-151.0,0.00013013,2]
[352583136,1739178654869,-14460.95612387,0.00013013,2]
[352583137,1739178654900,-500.0,0.00011643,2]
[352583138,1739178654910,-5087.41387613,0.00013013,2]
[352583139,1739178654920,-560.17,0.00013013,2]
[352583140,1739178654930,-1383.92,0.00013013,2]
[352583141,1739178654940,-923.08,0.00013013,2]
[352583142,1739178654950,-534.86,0.00013013,2]
[352583143,1739178654960,-2923.13,0.00013013,2]
[352583144,1739178654970,-500.0,0.00013013,2]
[352583145,1739178654980,-1416.35,0.00013013,2]
[352583146,1739178654991,-716.41,0.00013013,2]
[352583147,1739178655002,-634.51,0.00013013,2]
[352583148,1739178655015,-506.21,0.00013013,2]
[352583149,1739178655025,-223.73857101,0.00013013,2]
[352583150,1739178655065,-1866.68,0.00011917,2]
[352583151,1739178655074,-1107.79142899,0.00013013,2]
[352583152,1739178655085,-604.57,0.00013013,2]
[352583153,1739178655094,-500.0,0.00013013,2]
[352583154,1739178655104,-568.08,0.00013013,2]
[352583155,1739178655114,-756.28,0.00013013,2]
[352583156,1739178655123,-4460.89982801,0.00013013,2]
[352583157,1739178655135,-2764.74017199,0.00013013,2]
[352583158,1739178655145,-863.77,0.00013013,2]
[352583159,1739178655155,-904.08,0.00013013,2]
[352583160,1739178655165,-1490.65,0.00013013,2]
[352583161,1739178655174,-1689.31,0.00013013,2]
[352583162,1739178655185,-520.59,0.00013013,2]
[352583163,1739178655194,-754.98,0.00013013,2]
[352583164,1739178655204,-2892.98,0.00013013,2]
[352583165,1739178655214,-1568.35,0.00013013,2]
[352583166,1739178655223,-5541.94,0.00013013,2]
[352583167,1739178655233,-1220.88,0.00013013,2]
[352583168,1739178655242,-161.86712307,0.00013013,2]
[352583169,1739178655252,-151.0,0.00013059,2]
[352583170,1739178655261,-151.0,0.00013059,2]
[352583171,1739178655271,-151.0,0.00013059,2]
[352583172,1739178655280,-5000.27585283,0.00013059,2]
[352583173,1739178655289,-5000.0,0.00013059,2]
[352583174,1739178655298,-5000.0,0.00013059,2]
[352583175,1739178655308,-5000.0,0.00013059,2]
[352583176,1739178655317,-5000.0,0.00013059,2]
[352583177,1739178655327,-151.0,0.000131,2]
[352583178,1739178655337,-162.433208,0.0001315,2]
[352583179,1739178655346,-162.433208,0.0001315,2]
[352583180,1739178655356,-500.0,0.0001315,2]
[352583181,1739178655365,-500.0,0.0001315,2]
[352583182,1739178655375,-151.0,0.0001315,2]
[352583183,1739178655384,-558.17,0.0001315,2]
[352583184,1739178655394,-500.0,0.0001315,2]
[352583185,1739178655403,-500.0,0.0001315,2]
[352583186,1739178655413,-151.0,0.0001315,2]
[352583187,1739178655422,-151.0,0.0001315,2]
[352583188,1739178655432,-379.13000001,0.0001315,2]
[352583189,1739178655441,-742.11,0.0001315,2]
[352583190,1739178655451,-152.516223,0.0001315,2]
[352583191,1739178655460,-152.516223,0.0001315,2]
[352583192,1739178655469,-858.14,0.0001315,2]
[352583193,1739178655478,-537.94,0.0001315,2]
[352583194,1739178655491,-617.4,0.0001315,2]
[352583195,1739178655508,-500.0,0.0001315,2]
[352583196,1739178655521,-1006.77,0.0001315,2]
[352583197,1739178655530,-19548.37,0.0001315,2]
[352583198,1739178655540,-560.17,0.0001315,2]
[352583199,1739178655550,-1383.92,0.0001315,2]
[352583200,1739178655561,-923.08,0.0001315,2]
[352583201,1739178655571,-2923.13,0.0001315,2]
[352583202,1739178655582,-500.0,0.0001315,2]
[352583203,1739178655591,-1416.35,0.0001315,2]
[352583204,1739178655601,-716.41,0.0001315,2]
[352583205,1739178655611,-634.51,0.0001315,2]
[352583206,1739178655620,-506.21,0.0001315,2]
[352583207,1739178655629,-1331.53,0.0001315,2]
[352583208,1739178655638,-604.57,0.0001315,2]
[352583209,1739178655648,-500.0,0.0001315,2]
[352583210,1739178655657,-568.08,0.0001315,2]
[352583211,1739178655667,-756.28,0.0001315,2]
[352583212,1739178655677,-7225.64,0.0001315,2]
[352583213,1739178655686,-863.77,0.0001315,2]
[352583214,1739178655696,-904.08,0.0001315,2]
[352583215,1739178655706,-1490.65,0.0001315,2]
[352583216,1739178655716,-151.0,0.0001315,2]
[352583217,1739178655725,-1689.31,0.0001315,2]
[352583218,1739178655815,-151.0,0.0001315,2]
[352583219,1739178655826,-520.59,0.0001315,2]
[352583220,1739178655836,-754.98,0.0001315,2]
[352583221,1739178655846,-2892.98,0.0001315,2]
[352583222,1739178655855,-1568.35,0.0001315,2]
[352583223,1739178655866,-5541.94,0.0001315,2]
[352583224,1739178655875,-1220.88,0.0001315,2]
[352583225,1739178655885,-175.425665,0.00013287,2]
[352583226,1739178655894,-151.0,0.00013287,2]
[352583227,1739178655903,-500.0,0.00013287,2]
[352583228,1739178655913,-500.0,0.00013287,2]
[352583229,1739178655922,-558.17,0.00013287,2]
[352583230,1739178655932,-500.0,0.00013287,2]
[352583231,1739178655942,-500.0,0.00013287,2]
[352583232,1739178655952,-742.11,0.00013287,2]
[352583233,1739178655962,-858.14,0.00013287,2]
[352583234,1739178655972,-537.94,0.00013287,2]
[352583235,1739178655982,-617.4,0.00013287,2]
[352583236,1739178655991,-500.0,0.00013287,2]
[352583237,1739178656002,-1006.77,0.00013287,2]
[352583238,1739178656015,-19548.37,0.00013287,2]
[352583239,1739178656025,-560.17,0.00013287,2]
[352583240,1739178656035,-1383.92,0.00013287,2]
[352583241,1739178656044,-923.08,0.00013287,2]
[352583242,1739178656054,-2923.13,0.00013287,2]
[352583243,1739178656064,-500.0,0.00013287,2]
[352583244,1739178656074,-1416.35,0.00013287,2]
[352583245,1739178656083,-716.41,0.00013287,2]
[352583246,1739178656093,-634.51,0.00013287,2]
[352583247,1739178656102,-506.21,0.00013287,2]
[352583248,1739178656112,-1331.53,0.00013287,2]
[352583249,1739178656121,-604.57,0.00013287,2]
[352583250,1739178656130,-500.0,0.00013287,2]
[352583251,1739178656140,-568.08,0.00013287,2]
[352583252,1739178656150,-756.28,0.00013287,2]
[352583253,1739178656161,-7225.64,0.00013287,2]
[352583254,1739178656171,-863.77,0.00013287,2]
[352583255,1739178656181,-904.08,0.00013287,2]
[352583256,1739178656190,-1490.65,0.00013287,2]
[352583257,1739178656200,-1689.31,0.00013287,2]
[352583258,1739178656210,-520.59,0.00013287,2]
[352583259,1739178656220,-754.98,0.00013287,2]
[352583260,1739178656230,-2892.98,0.00013287,2]
[352583261,1739178656239,-1568.35,0.00013287,2]
[352583262,1739178656249,-5541.94,0.00013287,2]
[352583263,1739178656258,-1220.88,0.00013287,2]
[352583264,1739178656267,-500.0,0.00013385,2]
[352583265,1739178656278,-151.0,0.000134,2]
[352583266,1739178656287,-500.0,0.00013424,2]
[352583267,1739178656296,-500.0,0.00013424,2]
[352583268,1739178656305,-558.17,0.00013424,2]
[352583269,1739178656315,-500.0,0.00013424,2]
[352583270,1739178656324,-151.0,0.00013424,2]
[352583271,1739178656334,-500.0,0.00013424,2]
[352583272,1739178656343,-742.11,0.00013424,2]
[352583273,1739178656353,-858.14,0.00013424,2]
[352583274,1739178656363,-537.94,0.00013424,2]
[352583275,1739178656373,-617.4,0.00013424,2]
[352583276,1739178656383,-500.0,0.00013424,2]
[352583277,1739178656392,-1006.77,0.00013424,2]
[352583278,1739178656403,-19548.37,0.00013424,2]
[352583279,1739178656413,-560.17,0.00013424,2]
[352583280,1739178656424,-1383.92,0.00013424,2]
[352583281,1739178656434,-923.08,0.00013424,2]
[352583282,1739178656443,-2923.13,0.00013424,2]
[352583283,1739178656453,-500.0,0.00013424,2]
[352583284,1739178656462,-1416.35,0.00013424,2]
[352583285,1739178656472,-716.41,0.00013424,2]
[352583286,1739178656481,-634.51,0.00013424,2]
[352583287,1739178656491,-506.21,0.00013424,2]
[352583288,1739178656500,-1331.53,0.00013424,2]
[352583289,1739178656510,-604.57,0.00013424,2]
[352583290,1739178656521,-500.0,0.00013424,2]
[352583291,1739178656530,-220.901933,0.00013424,2]
[352583292,1739178656540,-568.08,0.00013424,2]
[352583293,1739178656550,-220.901933,0.00013424,2]
[352583294,1739178656560,-756.28,0.00013424,2]
[352583295,1739178656570,-7225.64,0.00013424,2]
[352583296,1739178656580,-863.77,0.00013424,2]
[352583297,1739178656591,-904.08,0.00013424,2]
[352583298,1739178656601,-1490.65,0.00013424,2]
[352583299,1739178656611,-1689.31,0.00013424,2]
[352583300,1739178656621,-520.59,0.00013424,2]
[352583301,1739178656631,-754.98,0.00013424,2]
[352583302,1739178656642,-2892.98,0.00013424,2]
[352583303,1739178656652,-1568.35,0.00013424,2]
[352583304,1739178656663,-5541.94,0.00013424,2]
[352583305,1739178656673,-223.377237,0.00013424,2]
[352583306,1739178656683,-1220.88,0.00013424,2]
[352583307,1739178656693,-161.86712307,0.00013524,2]
[352583308,1739178656704,-500.0,0.00013561,2]
[352583309,1739178656714,-222.67712056,0.00013561,2]
[352583310,1739178656723,-558.17,0.00013561,2]
[352583311,1739178656733,-500.0,0.00013561,2]
[352583312,1739178656743,-596.24,0.00013561,2]
[352583313,1739178656753,-742.11,0.00013561,2]
[352583314,1739178656763,-200.881105,0.00013561,2]
[352583315,1739178656772,-151.0,0.00013561,2]
[352583316,1739178656781,-858.14,0.00013561,2]
[352583317,1739178656791,-537.94,0.00013561,2]
[352583318,1739178656801,-617.4,0.00013561,2]
[352583319,1739178656810,-500.0,0.00013561,2]
[352583320,1739178656820,-1006.77,0.00013561,2]
[352583321,1739178656829,-151.0,0.00013561,2]
[352583322,1739178656840,-278.258563,0.00013561,2]
[352583323,1739178656850,-19548.37,0.00013561,2]
[352583324,1739178656860,-560.17,0.00013561,2]
[352583325,1739178656870,-1383.92,0.00013561,2]
[352583326,1739178656880,-923.08,0.00013561,2]
[352583327,1739178656890,-2923.13,0.00013561,2]
[352583328,1739178656900,-500.0,0.00013561,2]
[352583329,1739178656909,-1416.35,0.00013561,2]
[352583330,1739178656919,-716.41,0.00013561,2]
[352583331,1739178656928,-634.51,0.00013561,2]
[352583332,1739178656938,-506.21,0.00013561,2]
[352583333,1739178656947,-1331.53,0.00013561,2]
[352583334,1739178656956,-604.57,0.00013561,2]
[352583335,1739178656967,-500.0,0.00013561,2]
[352583336,1739178656976,-568.08,0.00013561,2]
[352583337,1739178656987,-756.28,0.00013561,2]
[352583338,1739178656997,-7225.64,0.00013561,2]
[352583339,1739178657007,-863.77,0.00013561,2]
[352583340,1739178657020,-904.08,0.00013561,2]
[352583341,1739178657030,-1490.65,0.00013561,2]
[352583342,1739178657039,-1689.31,0.00013561,2]
[352583343,1739178657049,-520.59,0.00013561,2]
[352583344,1739178657059,-754.98,0.00013561,2]
[352583345,1739178657069,-2892.98,0.00013561,2]
[352583346,1739178657078,-1568.35,0.00013561,2]
[352583347,1739178657088,-5541.94,0.00013561,2]
[352583348,1739178657098,-1220.88,0.00013561,2]
[352583349,1739178657108,-14999.999998,0.00013611,2]
[352583350,1739178657117,-498.9,0.00013698,2]
[352583351,1739178657128,-558.17,0.00013698,2]
[352583352,1739178657137,-500.0,0.00013698,2]
[352583353,1739178657147,-742.11,0.00013698,2]
[352583354,1739178657160,-151.0,0.00013698,2]
[352583355,1739178657169,-858.14,0.00013698,2]
[352583356,1739178657178,-537.94,0.00013698,2]
[352583357,1739178657188,-617.4,0.00013698,2]
[352583358,1739178657199,-500.0,0.00013698,2]
[352583359,1739178657208,-1006.77,0.00013698,2]
[352583360,1739178657218,-19548.37,0.00013698,2]
[352583361,1739178657228,-560.17,0.00013698,2]
[352583362,1739178657238,-1383.92,0.00013698,2]
[352583363,1739178657248,-923.08,0.00013698,2]
[352583364,1739178657258,-2923.13,0.00013698,2]
[352583365,1739178657268,-500.0,0.00013698,2]
[352583366,1739178657278,-151.0,0.00013698,2]
[352583367,1739178657288,-1416.35,0.00013698,2]
[352583368,1739178657298,-151.0,0.00013698,2]
[352583369,1739178657307,-716.41,0.00013698,2]
[352583370,1739178657317,-506.21,0.00013698,2]
[352583371,1739178657326,-634.51,0.00013698,2]
[352583372,1739178657336,-1331.53,0.00013698,2]
[352583373,1739178657346,-604.57,0.00013698,2]
[352583374,1739178657355,-500.0,0.00013698,2]
[352583375,1739178657365,-568.08,0.00013698,2]
[352583376,1739178657375,-756.28,0.00013698,2]
[352583377,1739178657385,-7225.64,0.00013698,2]
[352583378,1739178657394,-863.77,0.00013698,2]
[352583379,1739178657404,-904.08,0.00013698,2]
[352583380,1739178657413,-1490.65,0.00013698,2]
[352583381,1739178657423,-1689.31,0.00013698,2]
[352583382,1739178657432,-520.59,0.00013698,2]
[352583383,1739178657442,-754.98,0.00013698,2]
[352583384,1739178657451,-2892.98,0.00013698,2]
[352583385,1739178657461,-1568.35,0.00013698,2]
[352583386,1739178657470,-5541.94,0.00013698,2]
[352583387,1739178657480,-1220.88,0.00013698,2]
[352583388,1739178657490,-639.989897,0.00013699,2]
[352583389,1739178657499,-703.333961,0.00013699,2]
[352583390,1739178657509,-500.0,0.00013699,2]
[352583391,1739178657594,-183.62653941,0.00013699,2]
[352583392,1739178657605,-500.0,0.00013699,2]
[352583393,1739178657615,-500.0,0.00013699,2]
[352583394,1739178657625,-500.0,0.00013699,2]
[352583395,1739178657635,-500.0,0.00013699,2]
[352583396,1739178657648,-500.0,0.00013699,2]
[352583397,1739178657659,-500.0,0.00013699,2]
[352583398,1739178657669,-500.0,0.00013699,2]
[352583399,1739178657679,-500.0,0.00013699,2]
[352583400,1739178657688,-650.39743928,0.00013699,2]
[352583401,1739178657698,-500.0,0.00013699,2]
[352583402,1739178657708,-500.0,0.00013699,2]
[352583403,1739178657718,-500.0,0.00013699,2]
[352583404,1739178657728,-500.0,0.00013699,2]
[352583405,1739178657737,-500.0,0.00013699,2]
[352583406,1739178657747,-500.0,0.00013699,2]
[352583407,1739178657757,-500.0,0.00013699,2]
[352583408,1739178657766,-500.0,0.00013699,2]
[352583409,1739178657776,-500.0,0.00013699,2]
[352583410,1739178657786,-500.0,0.00013699,2]
[352583411,1739178657795,-500.0,0.00013699,2]
[352583412,1739178657805,-500.0,0.00013699,2]
[352583413,1739178657814,-500.0,0.00013699,2]
[352583414,1739178657824,-500.0,0.00013699,2]
[352583415,1739178657833,-500.0,0.00013699,2]
[352583416,1739178657843,-500.0,0.00013699,2]
[352583417,1739178657852,-500.0,0.00013699,2]
[352583418,1739178657862,-500.0,0.00013699,2]
[352583419,1739178657872,-500.0,0.00013699,2]
[352583420,1739178657882,-500.0,0.00013699,2]
[352583421,1739178657892,-500.0,0.00013699,2]
[352583422,1739178657902,-500.0,0.00013699,2]
[352583423,1739178657911,-500.0,0.00013699,2]
[352583424,1739178657920,-253.57695349,0.00013699,2]
[352583425,1739178657929,-500.0,0.00013699,2]
[352583426,1739178657938,-500.0,0.00013699,2]
[352583427,1739178657947,-500.0,0.00013699,2]
[352583428,1739178657957,-500.0,0.00013699,2]
[352583429,1739178657966,-500.0,0.00013699,2]
[352583430,1739178657975,-500.0,0.00013699,2]
[352583431,1739178657984,-500.0,0.00013699,2]
[352583432,1739178657994,-500.0,0.00013699,2]
[352583433,1739178658003,-500.0,0.00013699,2]
[352583434,1739178658015,-500.0,0.00013699,2]
[352583435,1739178658025,-500.0,0.00013699,2]
[352583436,1739178658033,-500.0,0.00013699,2]
[352583437,1739178658043,-500.0,0.00013699,2]
[352583438,1739178658052,-500.0,0.00013699,2]
[352583439,1739178658061,-500.0,0.00013699,2]
[352583440,1739178658070,-500.0,0.00013699,2]
[352583441,1739178658079,-500.0,0.00013699,2]
[352583442,1739178658089,-500.0,0.00013699,2]